Cogmind - Beta 17.1 @@@ ROGUE MODE // 2026.08.31 @ 16:17:03 Player: Talon Java Result: Destroyed by as-79724 with Assembled Heavy Rifle Performance ------------- Evolutions (0) 0 Regions Visited (2) 400 Robots Destroyed (22) 110 Value Destroyed (396) 396 Prototype IDs (0) 0 Alien Tech Used (0) 0 Bonus (0) 0 TOTAL SCORE: 906 Bonus ------- None Cogmind --------- Core Integrity 0/250 Matter 280/300 Energy 64/100 System Corruption 0% Temperature Cool (0) Movement Walking (120) Location -10/Mines Parts ------- > --- POWER (1) -------- (None) > --- PROPULSION (2) --- Improved Aluminum Leg Improved Aluminum Leg > --- UTILITY (2) ------ Large Storage Unit Seismic Detector > --- WEAPON (2) ------- Heavy Assault Rifle > --- INVENTORY (15) --- Ion Engine Heat Sink High-capacity Storage Unit Huge Storage Unit Structural Scanner Seismic Detector Improved Targeting Computer EM Pulse Gun Particle Cannon Heavy Assault Rifle Rocket Launcher Datajack Peak State ------------ > --- POWER ------------ Ion Engine > --- PROPULSION ------- Improved Aluminum Leg Improved Aluminum Leg > --- UTILITY ---------- Large Storage Unit Seismic Detector > --- WEAPON ----------- Heavy Assault Rifle Heavy Assault Rifle > --- INVENTORY -------- Light Ion Engine Light Treads Light Treads Huge Storage Unit Structural Scanner Seismic Detector EM Pulse Gun Heavy Assault Rifle Datajack [Rating: 12] Favorites ----------- Power Ion Engine Engine Ion Engine Propulsion Light Treads Treads Light Treads Leg Improved Aluminum Leg Utility Large Storage Unit Device Seismic Detector Storage Large Storage Unit Weapon Heavy Assault Rifle Energy Gun Small Laser Ballistic Gun Heavy Assault Rifle Build | -11 -10 -10 ------- Run | Yrd Mat Min Slots Evolved . | . . . Power . | . . . Propulsion . | . . . Utility . | . . . Weapon . | . . . Parts Attached 17 | 1 11 5 Power 2 | . 2 . Engine 2 | . 2 . Core . | . . . Reactor . | . . . Propulsion 7 | . 4 3 Treads 3 | . 2 1 Leg 4 | . 2 2 Wheel . | . . . Hover . | . . . Flight . | . . . Utility 4 | 1 3 . Device 3 | 1 2 . Storage 1 | . 1 . Processor . | . . . Hackware . | . . . Protection . | . . . Artifact . | . . . Weapon 4 | . 2 2 Energy Gun 1 | . . 1 Energy Cannon . | . . . Ballistic Gun 3 | . 2 1 Ballistic Cannon . | . . . Launcher . | . . . Special Weapon . | . . . Impact Weapon . | . . . Slashing Weapon . | . . . Piercing Weapon . | . . . Special Melee Weapon . | . . . Unidentified Prototypes . | . . . Parts Lost 7 | . 2 5 Power 2 | . 1 1 Propulsion 4 | . 1 3 Utility . | . . . Weapon 1 | . . 1 Highest Loss Streak 5 | . 1 5 To Critical Strikes . | . . . Average Backups 11 | 5 10 14 Power . | 1 . 1 Propulsion 2 | 2 2 2 Utility 4 | . 4 6 Weapon 2 | 1 2 4 Tool/Special . | . . . Unused Backups 25 | 8 8 9 Power 3 | 1 1 1 Propulsion 7 | 4 3 . Utility 6 | 1 1 4 Weapon 8 | 2 3 3 Tool/Special 1 | . . 1 Average Slot Usage (%) 99 | . 99 98 Engine 13 | . 13 13 Treads 13 | . 11 28 Leg 14 | . 16 . Device 14 | . 14 14 Storage 14 | . 14 14 Energy Gun 1 | . 1 . Ballistic Gun 26 | . 26 27 Peak Build Rating 12 | 7 12 11 Average Rating 10 | 6 10 10 On Entrance 8 | 6 7 11 Avg Prop Armor Cover (%) . | . . . Naked Turns . | . . . Heaviest Build 32 | 13 32 32 Greatest Support 40 | 20 40 40 Greatest Overweight (x) 1 | . 1 . Average Overweight (x) . | . . . Largest Inventory Capacity 15 | 8 15 15 Average Capacity 13 | 8 13 15 Most Carried 15 | 7 15 15 Average Carried 11 | 5 10 14 Final Capacity 15 | 8 15 15 Final Carried 15 | 5 15 12 Class Distribution -------------------- 100% | Mutant Dominant Class ---------------- Mutant | -10/Materials Mutant | -10/Mines Resources | -11 -10 -10 ----------- Run | Yrd Mat Min Matter Collected 611 | 200 341 70 Remotely . | . . . Salvage Created 699 | 35 567 97 Parts 42 | 5 36 1 Haulers Intercepted 2 | . 2 . Recyclers Shooed . | . . . Parts Field Recycled . | . . . Retrieved Matter . | . . . Parts Self-Destructed . | . . . Prevented . | . . . Parts Restored . | . . . Kills | -11 -10 -10 ------- Run | Yrd Mat Min Combat Hostiles Destroyed 17 | . 17 . Guns 17 | . 17 . Classes Destroyed 5 | 1 3 1 Tunneler 2 | 2 . . Hauler 2 | . 2 . Recycler 1 | . . 1 Swarmer 9 | . 9 . Grunt 8 | . 8 . Best Kill Streak 3 | 1 3 1 Combat Bots Only 3 | . 3 . Max Kills in Single Turn 2 | 1 2 1 Gunslinging 1 | . 1 . Exploded . | . . . Melee . | . . . Uniques/NPCs Destroyed . | . . . Combat | -11 -10 -10 -------- Run | Yrd Mat Min Hostile Shots Fired 102 | . 81 21 Missed 15 | . 13 2 Hits 87 | . 68 19 Projectile 87 | . 68 19 AOE 16 | . . 16 Damage Taken 1329 | . 622 707 Core 261 | . 78 183 Absorbed by Shields . | . . . Core Remaining (%) 100 | 100 . . Volleys Fired 51 | 2 48 1 Largest 2 | 2 2 2 Hottest 60 | 60 60 46 Shots Fired 102 | 4 96 2 Gun 102 | 4 96 2 Cannon . | . . . Launcher . | . . . Special . | . . . Kinetic 91 | 2 87 2 Thermal 11 | 2 9 . Explosive . | . . . Electromagnetic . | . . . Robot Hit Streak 11 | 2 11 7 Robot Miss Streak 7 | . 7 . Penetration Max . | . . . Secondary Targets 3 | . 3 . Max Gunslinging Chain 1 | . 1 . Shots Hit Robots 56 | 2 53 1 Core Hits 27 | 2 24 1 Critical Kills . | . . . Critical Parts Destroyed 1 | . 1 . Critical Strikes 1 | . 1 . Destroy 1 | . 1 . Melee Attacks . | . . . Impact . | . . . Slashing . | . . . Piercing . | . . . Sneak Attacks . | . . . Combat Hostiles . | . . . Follow-up Attacks . | . . . Damage Inflicted 840 | 20 805 15 Guns 840 | 20 805 15 Cannons . | . . . Explosions . | . . . Melee . | . . . Ramming . | . . . Kinetic 751 | . 736 15 Thermal 89 | 20 69 . Explosive . | . . . Electromagnetic . | . . . Impact . | . . . Slashing . | . . . Piercing . | . . . Highest Corruption . | . . . Average Corruption . | . . . Corruption Purged . | . . . Corruption Blocked . | . . . Overload Shots . | . . . Overflow Damage . | . . . Projectiles . | . . . Explosions . | . . . Melee . | . . . Knockbacks . | . . . Impact . | . . . Kinetic . | . . . Secondary . | . . . Self-Inflicted Damage . | . . . Shots . | . . . Rammed 1 | . . 1 Targets Rammed 1 | . . 1 Kicked . | . . . Crushed . | . . . Highest Temperature 40 | 20 40 4 Average Temperature 11 | 15 11 4 Received Heat Transfer 192 | . 168 24 Siege Activations . | . . . Martial Activations . | . . . Shielding Activations . | . . . Robots Disrupted . | . . . Combat Hostiles . | . . . Robots Corrupted . | . . . Combat Hostiles . | . . . Parts Fried . | . . . Impact Corruptions . | . . . Robots Melted . | . . . Combat Hostiles . | . . . Parts Melted . | . . . Heat Transferred 200 | 50 150 . Parts Sabotaged . | . . . Parts Stolen . | . . . Parts Stripped . | . . . Power Chain Reactions . | . . . Alert | -11 -10 -10 ------- Run | Yrd Mat Min Maximum Alert Level . | . . . Low Security (%) 100 | 100 100 100 Level 1 . | . . . Level 2 . | . . . Level 3 . | . . . Level 4 . | . . . Level 5 . | . . . High Security . | . . . Max Security . | . . . Peak Influence 138 | 5 138 44 Initial 39 | . 3 39 Average 56 | 2 65 11 Influence Increases 577 | 10 562 5 Destroy 0b10 Robot/C 340 | . 340 . Destroy 0b10 Robot/NC 25 | 10 10 5 Destroy Leader 64 | . 64 . Successful Hack 13 | . 13 . Select Force Hacks 60 | . 60 . Disable Machine 15 | . 15 . Lose Combat Pursuer 60 | . 60 . Influence Decreases 577 | 5 467 105 Entered New Map 63 | . 2 61 Time Decay 494 | 5 445 44 Lost Part 20 | . 20 . Squads Dispatched 5 | . 5 . Investigation 5 | . 5 . Extermination . | . . . Reinforcement . | . . . Assault . | . . . Garrison . | . . . Intercept . | . . . Searches Triggered . | . . . Construction Impeded . | . . . Haulers Reinforced . | . . . Active Scanning Responses . | . . . Cargo Convoy Interrupts . | . . . Stealth | -11 -10 -10 --------- Run | Yrd Mat Min Distress Signals 2 | . 2 . Communications Jammed . | . . . Distress Signals . | . . . Times Spotted 36 | . 30 6 Peak Tracking Total 7 | . 5 7 Tactical Retreats 3 | . 3 . Traps | -11 -10 -10 ------- Run | Yrd Mat Min Traps Triggered 2 | . 2 . Indirectly . | . . . Trap Hack Attempts . | . . . Triggered . | . . . Disarmed . | . . . Reprogrammed . | . . . Reused . | . . . Traps Extracted . | . . . Installed . | . . . Triggered . | . . . Machines | -11 -10 -10 ---------- Run | Yrd Mat Min Machines Disabled 1 | . 1 . Max in Single Turn 1 | . 1 . Machines Repaired . | . . . Machines Dismantled . | . . . Machines Sabotaged . | . . . Overloaded Fab Kills . | . . . Hacking | -11 -10 -10 --------- Run | Yrd Mat Min Machines Accessed 10 | . 10 . Terminals 8 | . 8 . Fabricators . | . . . Repair Stations . | . . . Recycling Units 2 | . 2 . Scanalyzers . | . . . Garrison Access . | . . . Total Hacks 30 | . 30 . Successful 17 | . 17 . Failed 12 | . 12 . Catastrophic . | . . . Database Lockouts 1 | . 1 . Manual 30 | . 30 . Terminals 28 | . 28 . Fabricators . | . . . Repair Stations . | . . . Recycling Units 2 | . 2 . Scanalyzers . | . . . Garrison Access . | . . . Terminal Hacks 3 | . 3 . Part Schematic 1 | . 1 . Terminal Index 1 | . 1 . Hauler Manifests 1 | . 1 . Fabricator Hacks . | . . . Repair Station Hacks . | . . . Recycling Unit Hacks . | . . . Scanalyzer . | . . . Garrison Access Hacks . | . . . Unauthorized Hacks 14 | . 14 . Terminals 12 | . 12 . Assimilate 2 | . 2 . Botnet 2 | . 2 . Operators 2 | . 2 . Skim 6 | . 6 . Fabricators . | . . . Repair Stations . | . . . Recycling Units 2 | . 2 . Tunnel 2 | . 2 . Scanalyzers . | . . . Garrison Access . | . . . Data Cores Recovered . | . . . Used . | . . . Hacking Detections 8 | . 8 . Full Trace Events 2 | . 2 . Feedback Events . | . . . Feedback Blocked . | . . . Robot Schematics Acquired . | . . . Robots Built . | . . . Authchips . | . . . Time . | . . . Total Robot Build Rating . | . . . Part Schematics Acquired 1 | . 1 . Parts Built . | . . . Authchips . | . . . Time . | . . . Total Part Build Rating . | . . . Part Studies Acquired . | . . . Parts Repaired . | . . . Time . | . . . Parts Recycled . | . . . Recycled Matter . | . . . Retrieved Matter . | . . . Retrieved Components . | . . . Parts Scanalyzed . | . . . Part Schematics Acquired . | . . . Parts Damaged . | . . . Bothacking | -11 -10 -10 ------------ Run | Yrd Mat Min Used RIF Installer . | . . . Robots Hacked . | . . . Non-combat . | . . . Combat . | . . . Robot Hacks Applied . | . . . Relay Couplers Released . | . . . Fabnet Peak Effective % . | . . . Robots Rewired . | . . . Allies Hacked . | . . . Hacks Repelled . | . . . Allies | -11 -10 -10 -------- Run | Yrd Mat Min Total Allies . | . . . Largest Group . | . . . Highest-Rated Group . | . . . Highest-Rated Ally . | . . . Total Orders . | . . . Ally Attacks . | . . . Total Damage . | . . . Kills . | . . . Allies Corrupted . | . . . Allies Melted . | . . . Intel | -11 -10 -10 ------- Run | Yrd Mat Min Active Infowar (turns) 1103 | 1 904 198 Structural 1 | . 1 . Seismic 1102 | 1 903 198 Robot Analysis Total . | . . . Derelict Logs Recovered 1 | . . 1 Drone Launches . | . . . Drone Recoveries . | . . . Exploration | -11 -10 -10 ------------- Run | Yrd Mat Min Turns Passed 1612 | 58 1356 198 Spaces Moved 789 | 11 670 108 Core . | . . . Treads 407 | . 299 108 Legs 382 | 11 371 . Wheels . | . . . Hover . | . . . Flight . | . . . Fastest Speed 120 | 120 120 160 Average Speed 158 | 120 159 160 Slowest Speed 190 | 120 190 160 Overloaded Moves . | . . . Propulsion Burnouts . | . . . Robots Hopped . | . . . Potential Cave-ins . | . . . Cave-ins Triggered . | . . . Exploration Rate (%) 39 | 2 85 32 Regions Visited 2 Branch Regions 1 Pre-discovered Areas 4 | . 3 1 Known Exits Taken . | . . . Unknown Exits Taken 2 | 1 1 . Scrap Searched 2 | . . 2 Spaces Dug . | . . . Terrain Destroyed . | . . . Melee . | . . . Projectile . | . . . AOE . | . . . Terrain Rammed . | . . . Walls Destroyed . | . . . Machines Disabled . | . . . Actions | -11 -10 -10 --------- Run | Yrd Mat Min Total 1048 | 53 864 131 Wait 157 | 36 108 13 Move 787 | 10 669 108 Hop . | . . . Pick Up 19 | 2 16 1 Fast Attach 5 | . 4 1 Attach 7 | 1 3 3 Detach . | . . . Swap 8 | . 7 1 Drop 13 | 2 9 2 Fire 51 | 2 48 1 Melee . | . . . Ram . | . . . Kick . | . . . Crush 1 | . . 1 Escape Stasis . | . . . Rewire . | . . . Trap . | . . . Miscellaneous . | . . . Route ------- -11/Scrapyard -10/Materials (discovered 5 exits: [*Mat x3] / [*Min x2]) -10/Mines (discovered 1 exit: [*Mat]) History --------- Turn | Location | Event 4 | -11/Scrapyard | Discovered new exit (range 2) 59 | -11/Scrapyard | Entered Materials 85 | -10/Materials | Discovered new exit (range 14) 188 | -10/Materials | Discovered new exit (range 14) 311 | -10/Materials | Build established: Mutant 334 | -10/Materials | Discovered new exit (range 13) 436 | -10/Materials | Central database locked down 574 | -10/Materials | Discovered new exit (range 13) 794 | -10/Materials | Discovered new exit (range 11) 1150 | -10/Materials | Learned location of Storage (-9) 1222 | -10/Materials | Learned location of 1 exit from Storage 1243 | -10/Materials | Loaded intel: 6 trap records 1277 | -10/Materials | Loaded intel: 2 recycling unit locations 1308 | -10/Materials | Learned 2 Materials zone layouts 1415 | -10/Materials | Entered Mines 1422 | -10/Mines | Received a Rocket Launcher from a helpful Derelict 1492 | -10/Mines | Discovered new exit (range 8) 1542 | -10/Mines | Found DCF Scrap (13 items) 1573 | -10/Mines | Assembled infested the area 1598 | -10/Mines | Core integrity fell below 50% 1607 | -10/Mines | Core integrity fell below 20% 1613 | -10/Mines | Destroyed by as-79724 with Assembled Heavy Rifle Last Messages --------------- 01580_ Found Welding Torch. 01580_ Found 69 Matter. 01585_ T-07 Excavator destroyed. 01596_ C-45 Heavy ARC bursts open, deploying its payload. 01596_ D-53 Grenadier unfolds itself. 01597_ Plasma Injector explodes. 01597_ K-01 Serf destroyed. 01597_ Plasma Injector explodes. 01598_ The unstable cave ceiling collapses. 01602_ Lgt. Treads destroyed. 01607_ The unstable cave ceiling collapses. 01607_ Hvy. Assault Rifle destroyed. 01607_ as-80545 destroyed. 01609_ The unstable cave ceiling collapses. 01609_ Ion Engine destroyed. 01610_ The unstable cave ceiling collapses. 01611_ Lgt. Treads destroyed. 01612_ The unstable cave ceiling collapses. 01612_ Lgt. Treads destroyed. Map ----- +----------------------------------------------------+ | | | | | | | | | ?????????????????????????????????????????????????? | | ?????????????????????????????????????????????????? | | ?????????????????????????????????????????????????? | | ?????????????????????????????????????????????????? | | ?????????????????????????????????????????????????? | | ?????????????????????????????????????????????????? | | ?????????????????????????????????????????????????? | | ?????????????????????????????????????????????????? | | ?????????????????????????????????????????????????? | | ?????????????????????????????????????????????????? | | ?????????????????????????????????????????????????? | | ????????????????????##???????????????????????????? | | ????????????????????? #??????????????????????????? | | ????????????????????? ??????????????????????????? | | ?????????????????????? ?#####????????????????????? | | ?????????????????????? ##???????????????????? | | ??????????????????????# ##??????????????????? | | ?????????????????????## # ########???????????? | | ????????????????????## #???????????? | | ????????????????????# ? #???????????? | | ????????????????????# #???? #???????????? | | ????????????????????# @ #???# #???????????? | | ????????????????????# ##??# #???????????? | | ????????????????????## #??# #???????????? | | ??????????????### ### #### #???????????? | | ???????????%! %=a # ## ###?????????? | | ?????????????##" !=%! # ??????????? | | ??????????????#" # # #???????????? | | ??????????????#; d # #???????????? | | ??????????????#; d % ######??????? | | ??????????????# # # #??????? | | ??????????????# # # *#### #??????? | | ??????????????#; #*]#???????????? | | ??????????????#" ; ####!]#???????????? | | ??????????????#" ;##??#=%#???????????? | | ??????????????##""""" ;;; #####??##|!##??????????? | | ???????????????###########?????###]==!#??????????? | | ???????????????????????????????# #??????????? | | ???????????????????????????????# #??????????? | | ???????????????????????????????+ # ##?????????? | | ???????????????????????????????+ ## ###???????? | | ???????????????????????????????# ## ##??????? | | ???????????????????????????????# # #??????? | | ????????????????????????????#### #??????? | | ???????????????????????????## ##??????? | | ???????????????????????????# ##???????? | +----------------------------------------------------+ Best States ------------- Heat Dissipation 35 Energy Generation 10 Energy Capacity 250 Matter Stores 300 Matter Capacity 300 Sight Range 16 Terrain Scan Density 10 Evasion (%) 55 Recoil Reduction 2 Item Schematics ----------------- Hcp. Storage Unit | -10/Materials | Hacked Robot Schematics ------------------ None Fabricated ------------ Nothing Repaired ---------- Nothing Studied --------- None Alien Tech Used ----------------- None Achievements -------------- None Challenges ------------ None Game ------ Seed LobotomyCoolantTendrils Manual? 0 Play Time 00:19:57 Cumulative 256.0 hours Start 2026.08.31 @ 15:59:12 End 2026.08.31 @ 16:17:03 Sessions 1 Manual Loads 0 Difficulty Rogue Special Mode None Game No. 130 Rogue 130 Adventurer 0 Explorer 0 Win Type - Total 2 Types 2/0/0/0/0/0/0/0/0/0 Lore% 45 Gallery% 57 Achievement% 44 Wizard Run 0 Options --------- Layout 2 ASCII 0 Keyboard 0 Movement Mouse Keybinds 1 Fullscreen 1 Font 32/Terminus Map View 50x44 Zoom Use 0% Tactical HUD 1 Map Filters NONE Filters NONE Steam 1 RUN: 8f87c5d6-25eb-47a9-99e3-a7a620da3b4a